fUSD/lending_fUSD_20250219
["ID","MTS","AMOUNT","RATE_DAILY","PERIOD"]
[353599677,1739956266012,-1764.87,0.00013863,2]
[353599678,1739956266027,-900.61,0.00013863,2]
[353599679,1739956266040,-694.79,0.00013863,2]
[353599680,1739956266053,-521.02,0.00013863,2]
[353599681,1739956266067,-1436.92,0.00013863,2]
[353599682,1739956266080,-2465.89,0.00013863,2]
[353599683,1739956266093,-500.0,0.00013863,2]
[353599684,1739956266106,-5648.32,0.00013863,2]
[353599685,1739956266118,-1247.16,0.00013863,2]
[353599686,1739956266131,-1891.36,0.00013863,2]
[353599687,1739956266144,-1421.58,0.00013863,2]
[353599688,1739956266158,-1775.36,0.00013863,2]
[353599689,1739956266171,-386.93085157,0.00013863,2]
[353599690,1739956266184,-500.0,0.00013863,2]
[353599691,1739956266197,-659.58,0.00013863,2]
[353599692,1739956266210,-2183.33,0.00013863,2]
[353599693,1739956266225,-500.0,0.00013863,2]
[353599694,1739956266238,-726.93,0.00013863,2]
[353599695,1739956266251,-500.0,0.00013863,2]
[353599696,1739956266265,-500.0,0.00013863,2]
[353599697,1739956266278,-500.0,0.00013863,2]
[353599698,1739956266292,-500.0,0.00013863,2]
[353599699,1739956266305,-500.0,0.00013863,2]
[353599700,1739956266317,-500.0,0.00013863,2]
[353599701,1739956266330,-500.0,0.00013863,2]
[353599702,1739956266343,-500.0,0.00013863,2]
[353599703,1739956266356,-500.0,0.00013863,2]
[353599704,1739956266368,-1670.07,0.00013863,2]
[353599705,1739956266382,-500.0,0.00013863,2]
[353599706,1739956266394,-2578.58,0.00013863,2]
[353599707,1739956266407,-1242.15,0.00013863,2]
[353599708,1739956266419,-500.0,0.00013863,2]
[353599709,1739956266432,-2434.23,0.00013863,2]
[353599710,1739956266445,-515.44,0.00013863,2]
[353599711,1739956266459,-1725.38,0.00013863,2]
[353599712,1739956266471,-500.0,0.00013863,2]
[353599713,1739956266484,-500.0,0.00013863,2]
[353599714,1739956266497,-535.58,0.00013863,2]
[353599715,1739956266509,-754.45,0.00013863,2]
[353599716,1739956266522,-590.45,0.00013863,2]
[353599717,1739956266535,-500.0,0.00013863,2]
[353599718,1739956266548,-500.0,0.00013863,2]
[353599719,1739956266563,-1863.3,0.00013863,2]
[353599720,1739956266578,-500.0,0.00013863,2]
[353599721,1739956266592,-500.0,0.00013863,2]
[353599722,1739956266607,-1302.69,0.00013863,2]
[353599723,1739956266621,-198.81996306,0.00013863,2]
[353599724,1739956266634,-611.77,0.00013863,2]
[353599725,1739956266647,-500.0,0.00013863,2]
[353599726,1739956266661,-1058.49,0.00013863,2]
[353599727,1739956266674,-3558.82,0.00013863,2]
[353599728,1739956266689,-500.0,0.00013863,2]
[353599729,1739956266702,-500.0,0.00013863,2]
[353599730,1739956266715,-1438.74,0.00013863,2]
[353599731,1739956266728,-500.0,0.00013863,2]
[353599732,1739956266741,-500.0,0.00013863,2]
[353599733,1739956266753,-1419.24,0.00013863,2]
[353599734,1739956266767,-543.01,0.00013863,2]
[353599735,1739956266781,-580.26,0.00013863,2]
[353599736,1739956266794,-500.0,0.00013863,2]
[353599737,1739956266808,-500.0,0.00013863,2]
[353599738,1739956266819,-1560.47,0.00013863,2]
[353599739,1739956266833,-500.0,0.00013863,2]
[353599740,1739956266846,-2810.29,0.00013863,2]
[353599741,1739956266859,-683.17,0.00013863,2]
[353599742,1739956266872,-2267.7,0.00013863,2]
[353599743,1739956266884,-634.82,0.00013863,2]
[353599744,1739956267188,-500.0,0.00013863,2]
[353599745,1739956267214,-712.49,0.00013863,2]
[353599746,1739956267227,-880.44,0.00013863,2]
[353599747,1739956267237,-500.0,0.00013863,2]
[353599748,1739956267247,-500.0,0.00013863,2]
[353599749,1739956267257,-1222.91,0.00013863,2]
[353599750,1739956267267,-424.131885,0.00013863,2]
[353599751,1739956267276,-774.88,0.00013863,2]
[353599752,1739956267287,-1445.39,0.00013863,2]
[353599753,1739956267297,-1378.54,0.00013863,2]
[353599754,1739956267306,-500.0,0.00013863,2]
[353599755,1739956267315,-500.0,0.00013863,2]
[353599756,1739956267325,-2049.49,0.00013863,2]
[353599757,1739956267335,-3955.33,0.00013863,2]
[353599758,1739956267345,-500.0,0.00013863,2]
[353599759,1739956267355,-1851.11,0.00013863,2]
[353599760,1739956267365,-500.0,0.00013863,2]
[353599761,1739956267375,-500.0,0.00013863,2]
[353599762,1739956267384,-500.0,0.00013863,2]
[353599763,1739956267394,-626.1,0.00013863,2]
[353599764,1739956267404,-1116.85,0.00013863,2]
[353599765,1739956267414,-500.0,0.00013863,2]
[353599766,1739956267423,-500.0,0.00013863,2]
[353599767,1739956267433,-541.04,0.00013863,2]
[353599768,1739956267443,-500.0,0.00013863,2]
[353599769,1739956267452,-500.0,0.00013863,2]
[353599770,1739956267461,-510.53101168,0.00013863,2]
[353599771,1739956267470,-500.0,0.00013863,2]
[353599772,1739956267480,-2535.97,0.00013863,2]
[353599773,1739956267490,-909.68,0.00013863,2]
[353599774,1739956267499,-500.0,0.00013863,2]
[353599775,1739956267509,-1008.69,0.00013863,2]
[353599776,1739956267519,-500.0,0.00013863,2]
[353599777,1739956267528,-566.87,0.00013863,2]
[353599778,1739956267538,-500.0,0.00013863,2]
[353599779,1739956267548,-500.0,0.00013863,2]
[353599780,1739956267557,-391.74637532,0.00013863,2]
[353599781,1739956267567,-500.0,0.00013863,2]
[353599782,1739956267576,-500.0,0.00013863,2]
[353599783,1739956267586,-2442.14,0.00013863,2]
[353599784,1739956267600,-725.34,0.00013863,2]
[353599785,1739956267610,-1717.28,0.00013863,2]
[353599786,1739956267619,-500.0,0.00013863,2]
[353599787,1739956267631,-762.52,0.00013863,2]
[353599788,1739956267643,-500.0,0.00013863,2]
[353599789,1739956267652,-763.77,0.00013863,2]
[353599790,1739956267664,-2355.63,0.00013863,2]
[353599791,1739956267680,-500.0,0.00013863,2]
[353599792,1739956267689,-1349.03,0.00013863,2]
[353599793,1739956267699,-500.0,0.00013863,2]
[353599794,1739956267710,-620.68,0.00013863,2]
[353599795,1739956267719,-500.0,0.00013863,2]
[353599796,1739956267729,-2226.08,0.00013863,2]
[353599797,1739956267738,-3256.41,0.00013863,2]
[353599798,1739956267748,-1476.22,0.00013863,2]
[353599799,1739956267757,-778.48,0.00013863,2]
[353599800,1739956267767,-504.93,0.00013863,2]
[353599801,1739956267777,-2368.0,0.00013863,2]
[353599802,1739956267787,-4712.41,0.00013863,2]
[353599803,1739956267796,-500.0,0.00013863,2]
[353599804,1739956267806,-1792.66,0.00013863,2]
[353599805,1739956267815,-500.0,0.00013863,2]
[353599806,1739956267825,-500.0,0.00013863,2]
[353599807,1739956267834,-500.0,0.00013863,2]
[353599808,1739956267843,-1074.11,0.00013863,2]
[353599809,1739956267854,-551.881425,0.00013863,2]
[353599810,1739956267863,-500.0,0.00013863,2]
[353599811,1739956267873,-625.27,0.00013863,2]
[353599812,1739956267883,-534.79034593,0.00013863,2]
[353599813,1739956267893,-1195.25,0.00013863,2]
[353599814,1739956267902,-500.0,0.00013863,2]
[353599815,1739956267912,-1560.59,0.00013863,2]
[353599816,1739956267922,-500.0,0.00013863,2]
[353599817,1739956267932,-500.0,0.00013863,2]
[353599818,1739956267941,-1399.12,0.00013863,2]
[353599819,1739956267950,-500.0,0.00013863,2]
[353599820,1739956267960,-500.0,0.00013863,2]
[353599821,1739956267970,-2043.22,0.00013863,2]
[353599822,1739956267980,-500.0,0.00013863,2]
[353599823,1739956267993,-500.0,0.00013863,2]
[353599824,1739956268003,-633.81,0.00013863,2]
[353599825,1739956268016,-500.0,0.00013863,2]
[353599826,1739956268027,-500.0,0.00013863,2]
[353599827,1739956268037,-500.0,0.00013863,2]
[353599828,1739956268047,-2117.99,0.00013863,2]
[353599829,1739956268056,-500.0,0.00013863,2]
[353599830,1739956268066,-740.74,0.00013863,2]
[353599831,1739956268076,-975.0,0.00013863,2]
[353599832,1739956268086,-500.0,0.00013863,2]
[353599833,1739956268095,-562.62,0.00013863,2]
[353599834,1739956268105,-500.0,0.00013863,2]
[353599835,1739956268115,-500.0,0.00013863,2]
[353599836,1739956268125,-3662.43,0.00013863,2]
[353599837,1739956268135,-2535.77,0.00013863,2]
[353599838,1739956268145,-500.0,0.00013863,2]
[353599839,1739956268155,-2761.55,0.00013863,2]
[353599840,1739956268165,-844.44,0.00013863,2]
[353599841,1739956268175,-1707.3,0.00013863,2]
[353599842,1739956268185,-809.18,0.00013863,2]
[353599843,1739956268195,-709.61,0.00013863,2]
[353599844,1739956268206,-1672.11,0.00013863,2]
[353599845,1739956268215,-2116.56,0.00013863,2]
[353599846,1739956268224,-504.98,0.00013863,2]
[353599847,1739956268234,-1039.76,0.00013863,2]
[353599848,1739956268244,-500.0,0.00013863,2]
[353599849,1739956268253,-1513.02,0.00013863,2]
[353599850,1739956268263,-1619.08,0.00013863,2]
[353599851,1739956268272,-500.0,0.00013863,2]
[353599852,1739956268282,-6306.71,0.00013863,2]
[353599853,1739956268291,-1712.82,0.00013863,2]
[353599854,1739956268300,-500.0,0.00013863,2]
[353599855,1739956268309,-1088.29,0.00013863,2]
[353599856,1739956268319,-1408.12,0.00013863,2]
[353599857,1739956268329,-1380.33,0.00013863,2]
[353599858,1739956268339,-538.95,0.00013863,2]
[353599859,1739956268348,-993.64390977,0.00013887,2]
[353599860,1739956268358,-178.9680553,0.00013887,2]
[353599861,1739956268368,-2789.62,0.00013899,2]
[353599862,1739956268378,-35870.12754232,0.000139,5]
[353599863,1739956268387,-20151.37736384,0.000139,2]
[353599864,1739956268397,-2789.62,0.00013944,2]
[353599865,1739956268406,-2789.62,0.00013944,2]
[353599866,1739956268416,-500.0,0.00013945,2]
[353599867,1739956268425,-500.0,0.00013945,2]
[353599868,1739956268434,-500.0,0.00013945,2]
[353599869,1739956268444,-500.0,0.00013945,2]
[353599870,1739956268453,-500.0,0.00013945,2]
[353599871,1739956268462,-500.0,0.00013945,2]
[353599872,1739956268472,-500.0,0.00013945,2]
[353599873,1739956268482,-500.0,0.00013945,2]
[353599874,1739956268491,-884.18,0.00013945,2]
[353599875,1739956268501,-500.0,0.00013945,2]
[353599876,1739956268510,-500.0,0.00013945,2]
[353599877,1739956268520,-500.0,0.00013945,2]
[353599878,1739956268530,-1946.584212,0.00013945,2]
[353599879,1739956268540,-500.0,0.00013945,2]
[353599880,1739956268550,-500.0,0.00013945,2]
[353599881,1739956268560,-834.85,0.00013945,2]
[353599882,1739956268570,-500.0,0.00013945,2]
[353599883,1739956268580,-1470.743788,0.00013945,2]
[353599884,1739956268590,-500.0,0.00013945,2]
[353599885,1739956268606,-500.0,0.00013945,2]
[353599886,1739956268615,-500.0,0.00013945,2]
[353599887,1739956268625,-711.77,0.00013945,2]
[353599888,1739956268635,-691.82,0.00013945,2]
[353599889,1739956268646,-500.0,0.00013945,2]
[353599890,1739956268655,-161.861003,0.00013945,2]
[353599891,1739956268665,-504.03247102,0.00013945,2]
[353599892,1739956268675,-500.0,0.00013945,2]
[353599893,1739956268684,-775.45,0.00013945,2]
[353599894,1739956268695,-500.0,0.00013945,2]
[353599895,1739956268705,-500.0,0.00013945,2]
[353599896,1739956268714,-500.0,0.00013945,2]
[353599897,1739956268724,-195.82129749,0.00013945,2]
[353599898,1739956268733,-500.0,0.00013945,2]
[353599899,1739956268744,-536.53,0.00013945,2]
[353599900,1739956268761,-500.0,0.00013945,2]
[353599901,1739956268771,-636.56,0.00013945,2]
[353599902,1739956268782,-500.0,0.00013945,2]
[353599903,1739956268794,-500.0,0.00013945,2]
[353599904,1739956268805,-500.0,0.00013945,2]
[353599905,1739956268814,-672.21,0.00013945,2]
[353599906,1739956268823,-500.0,0.00013945,2]
[353599907,1739956268833,-500.0,0.00013945,2]
[353599908,1739956268843,-500.0,0.00013945,2]
[353599909,1739956268853,-250.28781041,0.00013945,2]
[353599910,1739956268863,-891.66,0.00013945,2]
[353599911,1739956268872,-690.27,0.00013945,2]
[353599912,1739956268883,-500.0,0.00013945,2]
[353599913,1739956268892,-500.0,0.00013945,2]
[353599914,1739956268902,-506.54853232,0.00013945,2]
[353599915,1739956268912,-500.0,0.00013945,2]
[353599916,1739956268921,-500.0,0.00013945,2]
[353599917,1739956268931,-500.0,0.00013945,2]
[353599918,1739956268940,-500.0,0.00013945,2]
[353599919,1739956268950,-500.0,0.00013945,2]
[353599920,1739956268959,-500.0,0.00013945,2]
[353599921,1739956268969,-500.0,0.00013945,2]
[353599922,1739956268979,-571.03,0.00013945,2]
[353599923,1739956268988,-500.0,0.00013945,2]
[353599924,1739956268998,-500.0,0.00013945,2]
[353599925,1739956269007,-564.48,0.00013945,2]
[353599926,1739956269016,-731.53,0.00013945,2]
[353599927,1739956269027,-500.0,0.00013945,2]
[353599928,1739956269036,-509.53558783,0.00013945,2]
[353599929,1739956269047,-500.0,0.00013945,2]
[353599930,1739956269057,-1613.57,0.00013945,2]
[353599931,1739956269067,-612.22,0.00013945,2]
[353599932,1739956269076,-478.07453286,0.00013945,2]
[353599933,1739956269086,-500.0,0.00013945,2]
[353599934,1739956269096,-500.0,0.00013945,2]
[353599935,1739956269106,-500.0,0.00013945,2]
[353599936,1739956269116,-528.05,0.00013945,2]
[353599937,1739956269126,-500.0,0.00013945,2]
[353599938,1739956269136,-500.0,0.00013945,2]
[353599939,1739956269146,-500.0,0.00013945,2]
[353599940,1739956269156,-500.0,0.00013945,2]
[353599941,1739956269166,-500.0,0.00013945,2]
[353599942,1739956269175,-520.77,0.00013945,2]
[353599943,1739956269185,-500.0,0.00013945,2]
[353599944,1739956269196,-500.0,0.00013945,2]
[353599945,1739956269205,-593.34,0.00013945,2]
[353599946,1739956269215,-500.0,0.00013945,2]
[353599947,1739956269224,-500.0,0.00013945,2]
[353599948,1739956269234,-500.0,0.00013945,2]
[353599949,1739956269244,-500.0,0.00013945,2]
[353599950,1739956269254,-899.15,0.00013945,2]
[353599951,1739956269263,-500.0,0.00013945,2]
[353599952,1739956269273,-500.0,0.00013945,2]
[353599953,1739956269282,-506.02,0.00013945,2]
[353599954,1739956269291,-500.0,0.00013945,2]
[353599955,1739956269301,-500.0,0.00013945,2]
[353599956,1739956269311,-500.0,0.00013945,2]
[353599957,1739956269322,-500.0,0.00013945,2]
[353599958,1739956269331,-500.0,0.00013945,2]
[353599959,1739956269341,-500.0,0.00013945,2]
[353599960,1739956269350,-500.0,0.00013945,2]
[353599961,1739956269359,-599.19,0.00013945,2]
[353599962,1739956269369,-766.05,0.00013945,2]
[353599963,1739956269378,-500.0,0.00013945,2]
[353599964,1739956269388,-500.0,0.00013945,2]
[353599965,1739956269397,-500.0,0.00013945,2]
[353599966,1739956269406,-500.0,0.00013945,2]
[353599967,1739956269415,-500.0,0.00013945,2]
[353599968,1739956269425,-500.0,0.00013945,2]
[353599969,1739956269434,-1062.29,0.00013945,2]
[353599970,1739956269443,-500.0,0.00013945,2]
[353599971,1739956269452,-500.0,0.00013945,2]
[353599972,1739956269462,-500.0,0.00013945,2]
[353599973,1739956269471,-640.39,0.00013945,2]
[353599974,1739956269480,-500.0,0.00013945,2]
[353599975,1739956269489,-500.0,0.00013945,2]
[353599976,1739956269498,-500.0,0.00013945,2]
[353599977,1739956269507,-500.0,0.00013945,2]
[353599978,1739956269516,-946.45,0.00013945,2]
[353599979,1739956269526,-500.0,0.00013945,2]
[353599980,1739956269535,-500.0,0.00013945,2]
[353599981,1739956269544,-500.0,0.00013945,2]
[353599982,1739956269554,-500.0,0.00013945,2]
[353599983,1739956269563,-500.0,0.00013945,2]
[353599984,1739956269573,-500.0,0.00013945,2]
[353599985,1739956269582,-1320.52,0.00013945,2]
[353599986,1739956269593,-500.0,0.00013945,2]
[353599987,1739956269607,-500.0,0.00013945,2]
[353599988,1739956269616,-500.0,0.00013945,2]
[353599989,1739956269626,-500.0,0.00013945,2]
[353599990,1739956269635,-500.0,0.00013945,2]
[353599991,1739956269644,-500.81418102,0.00013945,2]
[353599992,1739956269653,-500.0,0.00013945,2]
[353599993,1739956269663,-532.84937145,0.00013945,2]
[353599994,1739956269672,-500.0,0.00013945,2]
[353599995,1739956269681,-1066.97,0.00013945,2]
[353599996,1739956269691,-614.46,0.00013945,2]
[353599997,1739956269702,-500.0,0.00013945,2]
[353599998,1739956269712,-521.88798575,0.00013945,2]
[353599999,1739956269721,-500.0,0.00013945,2]
[353600000,1739956269731,-500.0,0.00013945,2]
[353600001,1739956269741,-661.79,0.00013945,2]
[353600002,1739956269750,-500.0,0.00013945,2]
[353600003,1739956269760,-500.0,0.00013945,2]
[353600004,1739956269770,-500.0,0.00013945,2]
[353600005,1739956269779,-500.0,0.00013945,2]
[353600006,1739956269788,-500.0,0.00013945,2]
[353600007,1739956269797,-883.53,0.00013945,2]
[353600008,1739956269807,-768.24,0.00013945,2]
[353600009,1739956269816,-500.0,0.00013945,2]
[353600010,1739956269826,-500.0,0.00013945,2]
[353600011,1739956269835,-757.47,0.00013945,2]
[353600012,1739956269845,-500.0,0.00013945,2]
[353600013,1739956269855,-500.0,0.00013945,2]
[353600014,1739956269864,-500.0,0.00013945,2]
[353600015,1739956269874,-500.0,0.00013945,2]
[353600016,1739956269883,-500.0,0.00013945,2]
[353600017,1739956269892,-500.0,0.00013945,2]
[353600018,1739956269902,-704.06,0.00013945,2]
[353600019,1739956269911,-684.88,0.00013945,2]
[353600020,1739956269920,-807.63,0.00013945,2]
[353600021,1739956269930,-500.0,0.00013945,2]
[353600022,1739956269940,-1106.19,0.00013945,2]
[353600023,1739956269950,-296.72669757,0.00013945,2]
[353600024,1739956269959,-500.0,0.00013945,2]
[353600025,1739956269968,-500.0,0.00013945,2]
[353600026,1739956269978,-754.27,0.00013945,2]
[353600027,1739956269988,-500.0,0.00013945,2]
[353600028,1739956269998,-508.85,0.00013945,2]
[353600029,1739956270007,-500.0,0.00013945,2]
[353600030,1739956270018,-500.0,0.00013945,2]
[353600031,1739956270027,-599.3,0.00013945,2]
[353600032,1739956270037,-500.0,0.00013945,2]
[353600033,1739956270046,-500.0,0.00013945,2]
[353600034,1739956270056,-634.4,0.00013945,2]
[353600035,1739956270065,-613.55,0.00013945,2]
[353600036,1739956270075,-500.0,0.00013945,2]
[353600037,1739956270084,-671.28,0.00013945,2]
[353600038,1739956270094,-500.0,0.00013945,2]
[353600039,1739956270103,-549.02,0.00013945,2]
[353600040,1739956270113,-940.4,0.00013945,2]
[353600041,1739956270123,-500.0,0.00013945,2]
[353600042,1739956270132,-500.0,0.00013945,2]
[353600043,1739956270142,-500.0,0.00013945,2]
[353600044,1739956270151,-500.0,0.00013945,2]
[353600045,1739956270160,-500.0,0.00013945,2]
[353600046,1739956270170,-500.0,0.00013945,2]
[353600047,1739956270180,-500.0,0.00013945,2]
[353600048,1739956270190,-701.88,0.00013945,2]
[353600049,1739956270199,-1201.79,0.00013945,2]
[353600050,1739956270209,-500.0,0.00013945,2]
[353600051,1739956270218,-500.0,0.00013945,2]
[353600052,1739956270228,-500.0,0.00013945,2]
[353600053,1739956270237,-500.0,0.00013945,2]
[353600054,1739956270247,-500.0,0.00013945,2]
[353600055,1739956270256,-1066.42,0.00013945,2]
[353600056,1739956270266,-500.0,0.00013945,2]
[353600057,1739956270275,-500.0,0.00013945,2]
[353600058,1739956270284,-500.0,0.00013945,2]
[353600059,1739956270294,-702.43,0.00013945,2]
[353600060,1739956270304,-500.0,0.00013945,2]
[353600061,1739956270316,-606.28,0.00013945,2]
[353600062,1739956270325,-572.02,0.00013945,2]
[353600063,1739956270335,-500.0,0.00013945,2]
[353600064,1739956270344,-500.0,0.00013945,2]
[353600065,1739956270353,-500.0,0.00013945,2]
[353600066,1739956270363,-500.0,0.00013945,2]
[353600067,1739956270372,-500.0,0.00013945,2]
[353600068,1739956270382,-804.81,0.00013945,2]
[353600069,1739956270391,-500.0,0.00013945,2]
[353600070,1739956270578,-519.55,0.00013945,2]
[353600071,1739956270597,-1076.87,0.00013945,2]
[353600072,1739956270612,-500.0,0.00013945,2]
[353600073,1739956270622,-500.0,0.00013945,2]
[353600074,1739956270632,-500.0,0.00013945,2]
[353600075,1739956270641,-566.32394739,0.00013945,2]
[353600076,1739956270651,-500.0,0.00013945,2]
[353600077,1739956270661,-500.0,0.00013945,2]
[353600078,1739956270671,-663.22,0.00013945,2]
[353600079,1739956270681,-776.4,0.00013945,2]
[353600080,1739956270692,-500.0,0.00013945,2]
[353600081,1739956270702,-683.82,0.00013945,2]
[353600082,1739956270711,-521.37495496,0.00013945,2]
[353600083,1739956270721,-500.0,0.00013945,2]
[353600084,1739956270731,-500.0,0.00013945,2]
[353600085,1739956270742,-500.0,0.00013945,2]
[353600086,1739956270752,-500.0,0.00013945,2]
[353600087,1739956270762,-751.62,0.00013945,2]
[353600088,1739956270772,-500.0,0.00013945,2]
[353600089,1739956270782,-500.0,0.00013945,2]
[353600090,1739956270791,-500.0,0.00013945,2]
[353600091,1739956270801,-670.91,0.00013945,2]
[353600092,1739956270810,-510.804544,0.00013945,2]
[353600093,1739956270820,-515.19293717,0.00013945,2]
[353600094,1739956270830,-500.0,0.00013945,2]
[353600095,1739956270839,-955.91,0.00013945,2]
[353600096,1739956270849,-500.0,0.00013945,2]
[353600097,1739956270858,-1091.48,0.00013945,2]
[353600098,1739956270867,-500.0,0.00013945,2]
[353600099,1739956270877,-500.0,0.00013945,2]
[353600100,1739956270887,-500.0,0.00013945,2]
[353600101,1739956270897,-500.0,0.00013945,2]
[353600102,1739956270906,-500.0,0.00013945,2]
[353600103,1739956270916,-1394.43,0.00013945,2]
[353600104,1739956270927,-500.0,0.00013945,2]
[353600105,1739956270937,-672.58,0.00013945,2]
[353600106,1739956270947,-514.65,0.00013945,2]
[353600107,1739956270957,-500.0,0.00013945,2]
[353600108,1739956270967,-500.0,0.00013945,2]
[353600109,1739956270976,-500.0,0.00013945,2]
[353600110,1739956270986,-500.0,0.00013945,2]
[353600111,1739956270995,-500.0,0.00013945,2]
[353600112,1739956271005,-500.0,0.00013945,2]
[353600113,1739956271014,-527.06383383,0.00013945,2]
[353600114,1739956271024,-691.45,0.00013945,2]
[353600115,1739956271033,-479.03243362,0.00013945,2]
[353600116,1739956271043,-629.64,0.00013945,2]
[353600117,1739956271052,-500.0,0.00013945,2]
[353600118,1739956271062,-878.76,0.00013945,2]
[353600119,1739956271072,-500.0,0.00013945,2]
[353600120,1739956271081,-500.0,0.00013945,2]
[353600121,1739956271090,-500.0,0.00013945,2]
[353600122,1739956271099,-648.01,0.00013945,2]
[353600123,1739956271108,-500.0,0.00013945,2]
[353600124,1739956271118,-895.83,0.00013945,2]
[353600125,1739956271128,-500.0,0.00013945,2]
[353600126,1739956271138,-553.99,0.00013945,2]
[353600127,1739956271147,-682.24,0.00013945,2]
[353600128,1739956271157,-500.0,0.00013945,2]
[353600129,1739956271167,-694.25,0.00013945,2]
[353600130,1739956271177,-500.0,0.00013945,2]
[353600131,1739956271186,-635.95,0.00013945,2]
[353600132,1739956271196,-742.73,0.00013945,2]
[353600133,1739956271206,-966.29,0.00013945,2]
[353600134,1739956271215,-500.0,0.00013945,2]
[353600135,1739956271224,-500.0,0.00013945,2]
[353600136,1739956271234,-500.0,0.00013945,2]
[353600137,1739956271243,-500.0,0.00013945,2]
[353600138,1739956271252,-500.0,0.00013945,2]
[353600139,1739956271262,-500.0,0.00013945,2]
[353600140,1739956271272,-500.0,0.00013945,2]
[353600141,1739956271282,-518.6,0.00013945,2]
[353600142,1739956271291,-516.62,0.00013945,2]
[353600143,1739956271301,-614.7,0.00013945,2]
[353600144,1739956271310,-500.0,0.00013945,2]
[353600145,1739956271320,-500.0,0.00013945,2]
[353600146,1739956271329,-500.0,0.00013945,2]
[353600147,1739956271339,-500.0,0.00013945,2]
[353600148,1739956271349,-500.0,0.00013945,2]
[353600149,1739956271359,-1007.52,0.00013945,2]
[353600150,1739956271368,-500.0,0.00013945,2]
[353600151,1739956271378,-735.34,0.00013945,2]
[353600152,1739956271388,-500.0,0.00013945,2]
[353600153,1739956271397,-1732.84,0.00013945,2]
[353600154,1739956271407,-519.44727587,0.00013945,2]
[353600155,1739956271416,-500.0,0.00013945,2]
[353600156,1739956271426,-500.0,0.00013945,2]
[353600157,1739956271436,-500.0,0.00013945,2]
[353600158,1739956271446,-500.0,0.00013945,2]
[353600159,1739956271456,-500.0,0.00013945,2]
[353600160,1739956271466,-700.89,0.00013945,2]
[353600161,1739956271475,-500.0,0.00013945,2]
[353600162,1739956271485,-500.0,0.00013945,2]
[353600163,1739956271494,-500.0,0.00013945,2]
[353600164,1739956271503,-500.0,0.00013945,2]
[353600165,1739956271513,-500.0,0.00013945,2]
[353600166,1739956271522,-500.0,0.00013945,2]
[353600167,1739956271532,-563.75,0.00013945,2]
[353600168,1739956271541,-500.0,0.00013945,2]
[353600169,1739956271551,-500.0,0.00013945,2]
[353600170,1739956271560,-675.61,0.00013945,2]
[353600171,1739956271570,-572.44,0.00013945,2]
[353600172,1739956271580,-500.0,0.00013945,2]
[353600173,1739956271590,-692.71,0.00013945,2]
[353600174,1739956271601,-921.81,0.00013945,2]
[353600175,1739956271612,-500.0,0.00013945,2]
[353600176,1739956271622,-630.15,0.00013945,2]